Cogmind - Beta 13 @@@ ROGUE MODE // 2024.04.20 @ 19:00:49 Player: ToasterKoishi Result: Destroyed by as-00102 with Assembled Heavy Rifle Performance ------------- Evolutions (1) 500 Regions Visited (4) 800 Robots Destroyed (64) 320 Value Destroyed (1895) 1895 Prototype IDs (10) 200 Alien Tech Used (0) 0 Bonus (0) 0 TOTAL SCORE: 3715 Bonus ------- None Cogmind --------- Core Integrity 0/400 Matter 196/300 Energy 49/100 System Corruption 0% Temperature Cool (7) Movement Rolling (195) Ox7 Location -9/Mines Parts ------- > --- POWER (1) -------- (None) > --- PROPULSION (2) --- Light Treads Armored Wheel > --- UTILITY (4) ------ Heat Sink Huge Storage Unit Light Armor Plating > --- WEAPON (2) ------- Flak Cannon Shock Bomb Launcher > --- INVENTORY (25) --- Nuclear Core Light Treads Light Treads Light Treads Light Treads Wheel Huge Storage Unit High-capacity Matter Pod (200) Signal Interpreter Terrain Scan Processor Seismic Detector Bomb Drone Bay (16/16) Improved Medium Laser Improved Medium Laser Improved Medium Laser Improved Assault Rifle Flak Cannon Flak Cannon Flak Cannon Shock Bomb Launcher Peak State ------------ > --- POWER ------------ Ion Engine > --- PROPULSION ------- Light Treads Wheel > --- UTILITY ---------- Improved Heat Sink Huge Storage Unit Bomb Drone Bay > --- WEAPON ----------- Medium Laser Subdweller Machine Gun > --- INVENTORY -------- Ion Engine Ion Engine Light Ion Engine Light Ion Engine Light Treads Wheel Wheel Wheel Small Storage Unit Huge Storage Unit Small Matter Pod High-capacity Matter Pod Signal Interpreter Seismic Detector Medium Laser Small Laser Small Laser Light Assault Rifle Subdweller Machine Gun Light Cannon Light Cannon [Rating: 26] Favorites ----------- Power Nuclear Core Engine Ion Engine Power Core Nuclear Core Propulsion Light Treads Treads Light Treads Wheel Armored Wheel Utility Huge Storage Unit Device Improved Heat Sink Storage Huge Storage Unit Protection Light Armor Plating Weapon Subdweller Machine Gun Energy Gun Small Laser Ballistic Gun Subdweller Machine Gun Ballistic Cannon Flak Cannon Launcher Shock Bomb Launcher Build | -11 -10 -10 -9 -9 ------- Run | Yrd Mat Min Mat Min Slots Evolved 2 | . . . 2 . Power . | . . . . . Propulsion . | . . . . . Utility 2 | . . . 2 . Weapon . | . . . . . Parts Attached 73 | 6 21 4 36 6 Power 13 | 1 7 1 4 . Engine 12 | 1 7 1 3 . Core 1 | . . . 1 . Reactor . | . . . . . Propulsion 24 | 2 5 . 17 . Treads 14 | 2 3 . 9 . Leg . | . . . . . Wheel 10 | . 2 . 8 . Hover . | . . . . . Flight . | . . . . . Utility 16 | 1 3 1 8 3 Device 8 | . 1 1 4 2 Storage 4 | 1 2 . 1 . Processor . | . . . . . Hackware . | . . . . . Protection 4 | . . . 3 1 Artifact . | . . . . . Weapon 20 | 2 6 2 7 3 Energy Gun 6 | 1 2 1 2 . Energy Cannon . | . . . . . Ballistic Gun 8 | 1 4 1 2 . Ballistic Cannon 4 | . . . 3 1 Launcher 2 | . . . . 2 Special Weapon . | . . . . . Impact Weapon . | . . . . . Slashing Weapon . | . . . . . Piercing Weapon . | . . . . . Special Melee Weapon . | . . . . . Unidentified Prototypes 1 | . . . 1 . Parts Lost 19 | . 8 . 5 6 Power 2 | . 1 . . 1 Propulsion 5 | . 2 . 3 . Utility 5 | . . . 1 4 Weapon 7 | . 5 . 1 1 Highest Loss Streak 7 | . 7 . 3 5 To Critical Strikes . | . . . . . Average Slot Usage (%) 94 | . 89 100 97 98 Engine 7 | . 13 14 3 . Core 4 | . . . 7 11 Treads 12 | . 15 14 11 11 Wheel 11 | . 12 14 10 11 Device 10 | . 2 14 14 11 Storage 15 | . 18 14 15 11 Protection 7 | . . . 11 20 Energy Gun 9 | . 13 6 7 10 Ballistic Gun 9 | . 11 21 6 . Ballistic Cannon 4 | . . . 8 11 Naked Turns . | . . . . . Heaviest Build 104 | 10 91 94 104 103 Greatest Support 40 | 40 40 10 12 12 Greatest Overweight (x) 9 | . 9 9 9 8 Average Overweight (x) 7 | . 6 9 8 8 Largest Inventory Capacity 25 | 8 25 25 25 25 Average Capacity 24 | 6 23 25 25 25 Most Carried 25 | 2 16 23 25 25 Average Carried 18 | 1 10 20 24 24 Final Capacity 25 | 8 25 25 25 25 Final Carried 25 | 2 16 23 25 21 Class Distribution -------------------- 58% | Scavenger-Mutant 41% | Mutant Dominant Class ---------------- Mutant | -10/Materials Scavenger-Mutant | -10/Mines Scavenger-Mutant | -9/Materials Scavenger-Mutant | -9/Mines Resources | -11 -10 -10 -9 -9 ----------- Run | Yrd Mat Min Mat Min Matter Collected 1623 | 183 512 99 788 41 Remotely . | . . . . . Salvage Created 2068 | . 469 167 1299 133 Parts 134 | . 38 8 87 1 Haulers Intercepted 2 | . . . 2 . Recyclers Shooed . | . . . . . Parts Field Recycled . | . . . . . Retrieved Matter . | . . . . . Parts Self-Destructed . | . . . . . Prevented . | . . . . . Kills | -11 -10 -10 -9 -9 ------- Run | Yrd Mat Min Mat Min Combat Hostiles Destroyed 61 | . 12 4 37 8 Guns 37 | . 11 4 19 3 Cannons 19 | . . . 18 1 AOE 5 | . 1 . . 4 Classes Destroyed 10 | . 5 . 4 1 Worker 4 | . 3 . 1 . Hauler 2 | . . . 2 . Recycler 1 | . . . 1 . Mechanic 1 | . 1 . . . Watcher 1 | . . . 1 . Swarmer 11 | . 3 . 8 . Grunt 31 | . 6 4 19 2 Sentry 10 | . . . 10 . Subdweller 3 | . 3 . . . Assembled 6 | . . . . 6 Best Kill Streak 6 | . 4 2 6 5 Combat Bots Only 6 | . 3 2 6 5 Max Kills in Single Turn 3 | . 2 1 2 3 Gunslinging 1 | . 1 . . . Exploded 3 | . 1 . . 3 Melee . | . . . . . Uniques/NPCs Destroyed . | . . . . . Combat | -11 -10 -10 -9 -9 -------- Run | Yrd Mat Min Mat Min Hostile Shots Fired 290 | . 66 19 151 54 Missed 72 | . 12 7 39 14 Damage Taken 3197 | . 971 202 1340 684 Core 617 | . 190 18 287 122 Absorbed by Shields . | . . . . . Core Remaining (%) 58 | 100 . 16 . . Volleys Fired 150 | . 38 12 81 19 Largest 2 | . 2 2 2 2 Hottest 100 | . 70 80 100 100 Shots Fired 286 | . 73 24 160 29 Gun 203 | . 73 24 96 10 Cannon 79 | . . . 64 15 Launcher 4 | . . . . 4 Special . | . . . . . Kinetic 190 | . 43 15 117 15 Thermal 92 | . 30 9 43 10 Explosive . | . . . . . Electromagnetic 4 | . . . . 4 Robot Hit Streak 18 | . 10 7 18 7 Robot Miss Streak 11 | . 2 2 11 7 Penetration Max . | . . . . . Secondary Targets 2 | . 1 1 . . Max Gunslinging Chain 1 | . 1 1 . . Shots Hit Robots 216 | . 54 18 124 20 Core Hits 153 | . 28 7 91 27 Critical Kills 2 | . . 1 1 . Critical Parts Destroyed . | . . . . . Critical Strikes 7 | . . 1 6 . Burn 5 | . . . 5 . Destroy 2 | . . 1 1 . Melee Attacks . | . . . . . Impact . | . . . . . Slashing . | . . . . . Piercing . | . . . . . Sneak Attacks . | . . . . . Combat Hostiles . | . . . . . Follow-up Attacks . | . . . . . Damage Inflicted 3858 | . 729 306 2310 513 Guns 2329 | . 586 306 1322 115 Cannons 1206 | . . . 977 229 Explosions 307 | . 138 . . 169 Melee . | . . . . . Ramming 16 | . 5 . 11 . Kinetic 2597 | . 335 221 1812 229 Thermal 977 | . 251 85 487 154 Explosive 138 | . 138 . . . Electromagnetic 130 | . . . . 130 Impact . | . . . . . Slashing . | . . . . . Piercing . | . . . . . Highest Corruption . | . . . . . Average Corruption . | . . . . . Corruption Purged . | . . . . . Corruption Blocked . | . . . . . Overload Shots . | . . . . . Overflow Damage 125 | . 125 . . . Projectiles . | . . . . . Explosions 125 | . 125 . . . Melee . | . . . . . Knockbacks 40 | . . . 25 15 Impact . | . . . . . Kinetic 33 | . . . 21 12 Secondary 7 | . . . 4 3 Self-Inflicted Damage 245 | . 165 . 5 75 Shots 5 | . 2 . . 3 Rammed 4 | . 2 . 2 . Targets Rammed 4 | . 2 . 2 . Kicked . | . . . . . Crushed . | . . . . . Highest Temperature 143 | . 118 113 18 143 Average Temperature 43 | . 41 62 7 56 Received Heat Transfer 1295 | . 249 141 621 284 Siege Activations . | . . . . . Robots Corrupted . | . . . . . Combat Hostiles . | . . . . . Parts Fried . | . . . . . Impact Corruptions . | . . . . . Robots Melted . | . . . . . Combat Hostiles . | . . . . . Parts Melted 3 | . 1 1 1 . Heat Transferred 2661 | . 575 223 1554 309 Parts Sabotaged . | . . . . . Parts Stolen . | . . . . . Parts Stripped . | . . . . . Power Chain Reactions 2 | . . . . 2 Alert | -11 -10 -10 -9 -9 ------- Run | Yrd Mat Min Mat Min Peak Influence 359 | . 147 65 359 113 Initial 73 | . . . 19 73 Average 113 | . 50 57 175 86 Maximum Alert Level 1 | . . . 1 . Low Security (%) 82 | 100 100 100 63 100 Level 1 17 | . . . 36 . Level 2 . | . . . . . Level 3 . | . . . . . Level 4 . | . . . . . Level 5 . | . . . . . High Security . | . . . . . Max Security . | . . . . . Squads Dispatched 7 | . 2 . 5 . Investigation 3 | . . . 3 . Extermination . | . . . . . Reinforcement 4 | . 2 . 2 . Assault . | . . . . . Garrison . | . . . . . Intercept . | . . . . . Searches Triggered . | . . . . . Construction Impeded . | . . . . . Haulers Reinforced . | . . . . . Active Scanning Responses . | . . . . . Cargo Convoy Interrupts . | . . . . . Stealth | -11 -10 -10 -9 -9 --------- Run | Yrd Mat Min Mat Min Distress Signals 8 | . 1 . 6 1 Communications Jammed . | . . . . . Distress Signals . | . . . . . Times Spotted 109 | . 29 4 58 18 Peak Tracking Total 11 | . 5 2 10 11 Tactical Retreats 3 | . 1 . 1 1 Traps | -11 -10 -10 -9 -9 ------- Run | Yrd Mat Min Mat Min Traps Triggered 4 | . 3 . 1 . Indirectly . | . . . . . Trap Hack Attempts . | . . . . . Triggered . | . . . . . Disarmed . | . . . . . Reprogrammed . | . . . . . Reused . | . . . . . Traps Extracted . | . . . . . Installed . | . . . . . Triggered . | . . . . . Machines | -11 -10 -10 -9 -9 ---------- Run | Yrd Mat Min Mat Min Machines Disabled 4 | . 2 . 1 1 Max in Single Turn 2 | . 2 . 1 1 Machines Repaired . | . . . . . Machines Dismantled . | . . . . . Machines Sabotaged . | . . . . . Overloaded Fab Kills . | . . . . . Hacking | -11 -10 -10 -9 -9 --------- Run | Yrd Mat Min Mat Min Machines Accessed 13 | . 4 1 8 . Terminals 12 | . 4 . 8 . Fabricators . | . . . . . Repair Stations . | . . . . . Recycling Units . | . . . . . Scanalyzers . | . . . . . Garrison Access . | . . . . . Total Hacks 35 | . 16 1 18 . Successful 10 | . 6 1 3 . Failed 25 | . 10 . 15 . Catastrophic 6 | . 2 . 4 . Database Lockouts . | . . . . . Manual 32 | . 16 . 16 . Terminals 34 | . 16 . 18 . Fabricators . | . . . . . Repair Stations . | . . . . . Recycling Units . | . . . . . Scanalyzers . | . . . . . Garrison Access . | . . . . . Terminal Hacks 10 | . 6 1 3 . Prototype ID Bank 5 | . 4 . 1 . Open Door 1 | . . 1 . . Unreport Threat 4 | . 2 . 2 . Fabricator Hacks . | . . . . . Repair Station Hacks . | . . . . . Recycling Unit Hacks . | . . . . . Scanalyzer . | . . . . . Garrison Access Hacks . | . . . . . Unauthorized Hacks . | . . . . . Terminals . | . . . . . Fabricators . | . . . . . Repair Stations . | . . . . . Recycling Units . | . . . . . Scanalyzers . | . . . . . Garrison Access . | . . . . . Data Cores Recovered . | . . . . . Used . | . . . . . Hacking Detections 12 | . 4 . 8 . Full Trace Events 2 | . . . 2 . Feedback Events . | . . . . . Feedback Blocked . | . . . . . Robot Schematics Acquired . | . . . . . Robots Built . | . . . . . Authchips . | . . . . . Time . | . . . . . Total Robot Build Rating . | . . . . . Part Schematics Acquired . | . . . . . Parts Built . | . . . . . Authchips . | . . . . . Time . | . . . . . Total Part Build Rating . | . . . . . Parts Repaired . | . . . . . Time . | . . . . . Parts Recycled . | . . . . . Recycled Matter . | . . . . . Retrieved Matter . | . . . . . Retrieved Components . | . . . . . Parts Scanalyzed . | . . . . . Part Schematics Acquired . | . . . . . Parts Damaged . | . . . . . Bothacking | -11 -10 -10 -9 -9 ------------ Run | Yrd Mat Min Mat Min Used RIF Installer . | . . . . . Robots Hacked . | . . . . . Non-combat . | . . . . . Combat . | . . . . . Robot Hacks Applied . | . . . . . Relay Couplers Released . | . . . . . Fabnet Peak Effective % . | . . . . . Robots Rewired . | . . . . . Allies Hacked . | . . . . . Hacks Repelled . | . . . . . Allies | -11 -10 -10 -9 -9 -------- Run | Yrd Mat Min Mat Min Total Allies . | . . . . . Largest Group . | . . . . . Highest-Rated Group . | . . . . . Highest-Rated Ally . | . . . . . Total Orders . | . . . . . Ally Attacks . | . . . . . Total Damage . | . . . . . Kills . | . . . . . Allies Corrupted . | . . . . . Allies Melted . | . . . . . Intel | -11 -10 -10 -9 -9 ------- Run | Yrd Mat Min Mat Min Robot Analysis Total . | . . . . . Derelict Logs Recovered 1 | . . 1 . . Drone Launches . | . . . . . Drone Recoveries . | . . . . . Exploration | -11 -10 -10 -9 -9 ------------- Run | Yrd Mat Min Mat Min Turns Passed 5267 | 67 1770 472 2560 398 Spaces Moved 2174 | 37 808 190 981 158 Core 2 | 2 . . . . Treads 132 | 35 97 . . . Legs . | . . . . . Wheels 2040 | . 711 190 981 158 Hover . | . . . . . Flight . | . . . . . Fastest Speed 50 | 50 160 215 195 210 Average Speed 203 | 154 191 215 211 210 Slowest Speed 480 | 160 480 215 215 210 Overloaded Moves . | . . . . . Propulsion Burnouts . | . . . . . Robots Hopped . | . . . . . Cave-ins Triggered . | . . . . . Exploration Rate (%) 49 | 4 99 33 84 29 Regions Visited 4 Branch Regions 2 Pre-discovered Areas 1 | . . 1 . . Known Exits Taken . | . . . . . Unknown Exits Taken 4 | 1 1 1 1 . Scrap Searched 2 | . . 1 . 1 Spaces Dug . | . . . . . Terrain Destroyed 28 | . 18 . 1 9 Melee . | . . . . . Projectile 3 | . 2 . 1 . AOE 25 | . 16 . . 9 Terrain Rammed . | . . . . . Walls Destroyed . | . . . . . Machines Disabled . | . . . . . Actions | -11 -10 -10 -9 -9 --------- Run | Yrd Mat Min Mat Min Total 2754 | 44 950 229 1336 195 Wait 237 | . 59 19 147 12 Move 2170 | 36 807 189 980 158 Hop . | . . . . . Pick Up 65 | 2 18 4 41 . Fast Attach 20 | 6 6 1 7 . Attach 23 | . 11 . 8 4 Detach 9 | . 4 1 4 . Swap 30 | . 4 3 21 2 Drop 46 | . 1 . 45 . Fire 150 | . 38 12 81 19 Melee . | . . . . . Ram 4 | . 2 . 2 . Kick . | . . . . . Crush . | . . . . . Escape Stasis . | . . . . . Rewire . | . . . . . Trap . | . . . . . Miscellaneous . | . . . . . Route ------- -11/Scrapyard -10/Materials (discovered 4 exits: *Mat x3 / *Min) -10/Mines (discovered 2 exits: *Mat / [*Sub]) -9/Materials (discovered 4 exits: [*Mat x3] / [*Min]) -9/Mines History --------- Turn | Location | Event 16 | -11/Scrapyard | Discovered new exit (range 15) 68 | -11/Scrapyard | Entered Materials 316 | -10/Materials | Build established: Mutant 332 | -10/Materials | Discovered new exit (range 13) 630 | -10/Materials | Discovered new exit (range 14) 868 | -10/Materials | Derelicts attacked the area 918 | -10/Materials | Core integrity fell below 50% 981 | -10/Materials | Lost 7 parts (1p2n4w) 1027 | -10/Materials | Discovered new exit (range 15) 1580 | -10/Materials | Discovered new exit (range 7) 1838 | -10/Materials | Entered Mines 1841 | -10/Mines | Core integrity fell below 20% 2005 | -10/Mines | Found the Drone Emporium 2026 | -10/Mines | Found Prototype Device 2145 | -10/Mines | Build established: Scavenger-Mutant 2212 | -10/Mines | Discovered new exit (range 9) 2225 | -10/Mines | Learned location of Zion (-6) 2285 | -10/Mines | Discovered new exit (range 12) 2310 | -10/Mines | Entered Materials 2310 | -9/Materials | Evolved 2 slots: Utility x2 2310 | -9/Materials | Identified Bomb Drone Bay 2546 | -9/Materials | Lost 3 parts (2n1w) 3163 | -9/Materials | Discovered new exit (range 4) 3284 | -9/Materials | Core integrity fell below 50% 3927 | -9/Materials | Discovered new exit (range 9) 4214 | -9/Materials | Discovered new exit (range 16) 4807 | -9/Materials | Discovered new exit (range 13) 4870 | -9/Materials | Entered Mines 5186 | -9/Mines | Assembled infested the area 5191 | -9/Mines | Assisted by a Guerilla fighting off Assembled 5254 | -9/Mines | Core integrity fell below 20% 5268 | -9/Mines | Destroyed by as-00102 with Assembled Heavy Rifle Last Messages --------------- 05210_ as-56025 sneak attacks. 05210_ U-05 Engineer destroyed. 05216_ Lgt. Armor Plating destroyed. 05216_ as-10438 destroyed. 05216_ Chain reaction triggered in Corrupted Lgt. Ion Engine. 05216_ as-18474 destroyed. 05216_ as-00005 destroyed. 05221_ as-56025 knocked back. 05225_ T-07 Excavator destroyed. 05227_ as-56025 destroyed. 05230_ Imp. Medium Laser destroyed. 05232_ as-09873 knocked back. 05234_ Lgt. Armor Plating destroyed. 05235_ as-09873 destroyed. 05256_ as-00102 knocked back. 05258_ Heat Sink destroyed. 05261_ as-53427 destroyed. 05263_ Chain reaction triggered in Nuclear Core. 05263_ Seismic Survey Station disabled. 05264_ as-00102 misfires. Map ----- +----------------------------------------------------+ | ????????????????????????????????????????????????? | | ????????????????????????????????????????????????? | | ????????????????????????????????????????????????? | | ????????????????????????????????????????????????? | | ????????????????????????????????????????????????? | | ????????????????????????????????????????????????? | | ????????????????????????????????????????????????? | | ????????????????????????????????????###?????????? | | ???????????????????????????????????## ##????????? | | ???????????????????????????????????# #?##?????? | | ???????????????????????????????????# # #### # | | ???????????????????????????????????# ! =]%= $ # | | ??????????????????????????????????## !%!%=%%%* # | | ?????????????????????????????????## =""*##=*### | | ????????????????????????????????## % #????????? | | ????????????????####???????????## ##????????? | | ???????????????## ##????????###% ##?????????? | | ???????????????# ##????#### ##??????????? | | ??????????????## #???## ###???????????? | | ??????????????# #??## ###?????????????? | | ??????????????# ##??# ####???????????????? | | ??????????????# #???# ###########?????????? | | ??????????????## #???## a #?????????? | | ???????????????## ##### a a ????? | | ????????????????## # #### ##???????? | | ????????????????## @ #????? #????????? | | ????????????????# #???????? #???????? | | ????????????????# " #??????????????????? | | ???????????????## "" ##??????????????????? | | ???????????????# """ ###??????? ????????? | | ???????????????# ####### #???????? | | ???????????????# #???????? | | ???????????????# ## #???????? | | ???????????????# ###### ####### ???????? | | ???????????????## #????# #????????? ????????? | | ????????????????###????# #??????????????????????? | | ?????????????????####### #??????????????????????? | | ?????????????????# #??????????????????????? | | ?????????????????# #####%#??????????????????????? | | ?????????????????# #??## #??????????????????????? | | ?????????????????# #?## ##?????????????????????? | | ?????????????????# #?# #?????????????????????? | | ?????????????????# #?# #?????????????????????? | | ?????????????????# #?## ##????????????????????? | | ?????????????????# #??# ####?????????????????? | | ?????????????????# #### ##????????????????? | | ???????????????### ## #????????????????? | | ???????###????## ##????????????????? | | ???????# ##### ##?????????????????? | | ???????# ## ] ##?????????????????? | +----------------------------------------------------+ Best States ------------- Heat Dissipation 52 Energy Generation 15 Energy Capacity 265 Matter Stores 350 Matter Capacity 350 Sight Range 16 Terrain Scan Density 10 Armor Coverage 300 Evasion (%) 40 Recoil Reduction 2 Item Schematics ----------------- None Robot Schematics ------------------ None Fabricated ------------ Nothing Alien Tech Used ----------------- None Achievements -------------- None Challenges ------------ None Game ------ Seed DeliveryGhostDerivative Manual? 0 Play Time 00:29:44 Cumulative 69.5 hours Start 2024.04.20 @ 18:31:13 End 2024.04.20 @ 19:00:49 Sessions 1 Manual Loads 0 Difficulty Rogue Special Mode None Game No. 66 Rogue 66 Adventurer 0 Explorer 0 Win Type - Total 6 Types 5/0/1/0/0/0/0/0/0 Lore% 47 Gallery% 40 Achievement% 41 Wizard Run 0 Options --------- Layout 0 ASCII 0 Keyboard 1 Movement Vi Keybinds 0 Fullscreen 2 Font 16/SmallcapsGlow Map View 64x51 Zoom Use 0% Tactical HUD 1 Map Filters NONE Filters NONE Steam X RUN: 1bc06392-73e8-4975-96ef-b609316751ac